bitfinex-derivatives/quotes_BNBF0:USTF0_20250609
["timestamp","ask_amount","ask_price","bid_price","bid_amount"]
[1749462066282,0.26713543,651.66,650.73,0.30734713]
[1749462066283,0.26713543,651.66,650.86,3.81917192]
[1749462066483,0.30674376,652.01,650.86,3.81917192]
[1749462066679,0.26707085,651.75,650.86,3.81917192]
[1749462066881,0.26707085,651.75,650.73,0.30734713]
[1749462066882,0.26707085,651.75,650.88,3.81917192]
[1749462067379,0.26707085,651.75,650.91,3.81917192]
[1749462067583,0.26707085,651.75,650.92,3.81917192]
[1749462068079,0.26707085,651.75,650.93,3.81917192]
[1749462068582,0.26707085,651.75,650.95,3.81917192]
[1749462068979,0.26707085,651.75,650.96,3.81917192]
[1749462070484,0.26707085,651.75,650.93,3.81917192]
[1749462070885,0.26707085,651.75,650.94,3.81917192]
[1749462072787,0.26707085,651.75,650.93,3.81917192]
[1749462074587,0.26707085,651.75,650.98,3.81917192]
[1749462075387,0.26707085,651.75,650.93,3.81917192]
[1749462075890,0.26707085,651.75,650.89,3.81917192]
[1749462076291,0.26707085,651.75,650.94,3.81917192]
[1749462076792,0.26707085,651.75,650.95,3.81917192]
[1749462080490,0.26707085,651.75,650.97,3.81917192]
[1749462082590,0.26707085,651.75,650.99,3.81917192]
[1749462083094,0.26707085,651.75,651.0,3.81917192]
[1749462084893,0.26707085,651.75,650.93,3.81917192]
[1749462085490,0.26707085,651.75,650.98,3.81917192]
[1749462085895,0.26707085,651.75,651.07,3.81917192]
[1749462086791,0.26707085,651.75,651.03,3.81917192]
[1749462088992,0.26707085,651.75,651.05,3.81917192]
[1749462089493,0.26707085,651.75,651.0,3.81917192]
[1749462090397,0.26707085,651.75,650.79,3.81917192]
[1749462090597,0.26707085,651.75,650.8,0.30731407]
[1749462100403,0.26707085,651.75,650.8,4.12648599]
[1749462101597,0.26707085,651.75,650.82,3.81917192]
[1749462101796,0.26707085,651.75,650.83,0.3072999]
[1749462102605,0.26707085,651.75,650.85,3.81917192]
[1749462103803,0.26707085,651.75,650.85,0.30729046]
[1749462114711,0.26707085,651.75,650.86,3.81917192]
[1749462114914,0.26707085,651.75,650.86,4.12645766]
[1749462115610,0.26707085,651.75,650.87,3.81917192]
[1749462116111,0.26707085,651.75,650.89,3.81917192]
[1749462118417,0.26707085,651.75,650.9,3.81917192]
[1749462120518,0.26707085,651.75,650.93,3.81917192]
[1749462122320,0.26707085,651.75,650.91,3.81917192]
[1749462122816,0.26707085,651.75,650.86,0.30728574]
[1749462123217,0.26707085,651.75,650.9,3.81917192]
[1749462123618,0.26707085,651.75,650.89,3.81917192]
[1749462124222,0.26707085,651.75,650.86,0.30728574]
[1749462124223,0.26707085,651.75,650.94,3.81917192]
[1749462124618,0.26707085,651.75,651.0,3.81917192]
[1749462127823,0.26707085,651.75,651.01,3.81917192]
[1749462131026,0.26707085,651.75,650.86,0.30728574]
[1749462144341,0.26707085,651.75,650.93,3.81917192]
[1749462145843,0.26707085,651.75,650.92,3.81917192]
[1749462146237,0.26707085,651.75,650.86,0.30728574]
[1749462147941,0.26707085,651.75,650.89,3.81917192]
[1749462148544,0.26707085,651.75,651.11,3.81917192]
[1749462148739,0.30674376,652.01,651.11,3.81917192]
[1749462148947,0.26703397,651.84,651.15,3.81917192]
[1749462150346,0.26703397,651.84,651.14,3.81917192]
[1749462150846,0.26703397,651.84,651.1,3.81917192]
[1749462151247,0.26703397,651.84,651.11,3.81917192]
[1749462152443,0.26703397,651.84,651.12,3.81917192]
[1749462152945,0.26703397,651.84,651.07,3.81917192]
[1749462153548,0.26703397,651.84,650.97,3.81917192]
[1749462154049,0.26703397,651.84,650.86,0.30728574]
[1749462170864,0.26703397,651.84,651.02,3.81917192]
[1749462171263,0.26703397,651.84,651.03,3.81917192]
[1749462171765,0.26703397,651.84,650.86,0.30728574]
[1749462174962,0.26703397,651.84,650.91,3.81917192]
[1749462175763,0.26703397,651.84,650.9,3.81917192]
[1749462178869,0.26703397,651.84,650.89,3.81917192]
[1749462179366,0.26703397,651.84,650.9,3.81917192]
[1749462181165,0.26703397,651.84,650.91,3.81917192]
[1749462181870,0.26703397,651.84,651.14,3.81917192]
[1749462182567,0.26703397,651.84,650.88,5.34684069]
[1749462182770,0.26703397,651.84,650.86,0.30728574]
[1749462188571,0.26703397,651.84,650.88,3.81917192]
[1749462189371,0.26703397,651.84,650.87,3.81917192]
[1749462189971,0.26703397,651.84,650.88,3.81917192]
[1749462191874,0.26703397,651.84,650.86,0.30728574]
[1749462191875,0.26703397,651.84,651.0,3.81917192]
[1749462194377,0.26703397,651.84,650.98,3.81917192]
[1749462194774,0.26703397,651.84,650.97,3.81917192]
[1749462196177,0.26703397,651.84,650.98,3.81917192]
[1749462197976,0.26703397,651.84,651.03,3.81917192]
[1749462198481,0.26703397,651.84,651.05,3.81917192]
[1749462199279,0.26703397,651.84,651.06,3.81917192]
[1749462199677,0.26703397,651.84,651.05,3.81917192]
[1749462200380,0.26703397,651.84,651.06,3.81917192]
[1749462201182,0.26703397,651.84,651.05,3.81917192]
[1749462201983,0.26703397,651.84,651.03,3.81917192]
[1749462203584,0.26703397,651.84,651.06,3.81917192]
[1749462204186,0.26703397,651.84,651.07,3.81917192]
[1749462204682,0.26703397,651.84,651.04,3.81917192]
[1749462205685,0.26703397,651.84,651.07,3.81917192]
[1749462206486,0.26703397,651.84,651.04,3.81917192]
[1749462207583,0.26703397,651.84,651.03,3.81917192]
[1749462208085,0.26703397,651.84,650.86,0.30728574]
[1749462217393,0.26703397,651.84,650.97,3.81917192]
[1749462217997,0.26703397,651.84,650.98,5.34684069]
[1749462218196,0.26703397,651.84,651.13,3.81917192]
[1749462218594,0.26703397,651.84,650.98,5.34684069]
[1749462219097,0.26703397,651.84,650.9,3.81917192]
[1749462219292,0.26703397,651.84,650.9,4.12643878]
[1749462219493,0.26703397,651.84,650.9,0.30726686]
[1749462222295,0.30674376,652.01,650.9,0.30726686]
[1749462222597,0.26702987,651.97,650.9,0.30726686]
[1749462222798,0.26702987,651.97,650.93,3.81917192]
[1749462223296,0.30674376,652.01,651.27,3.81917192]
[1749462223698,0.30674376,652.01,651.08,5.34684069]
[1749462224494,0.30674376,652.01,650.9,0.30726686]
[1749462226500,0.30674376,652.01,650.92,3.81917192]
[1749462227200,0.30674376,652.01,650.92,4.12642934]
[1749462227401,0.30674376,652.01,650.93,0.30725269]
[1749462230901,0.26700733,652.06,650.93,0.30725269]
[1749462231804,0.26700733,652.06,650.95,3.81917192]
[1749462232006,0.26700733,652.06,650.96,0.30723854]
[1749462232207,0.26700733,652.06,651.04,3.81917192]
[1749462232402,0.26700733,652.06,651.05,0.30719606]
[1749462234807,0.26700733,652.06,651.05,4.12636798]
[1749462235308,0.26700733,652.06,651.05,0.30719606]
[1749462245211,0.26700733,652.06,651.08,3.81917192]
[1749462245710,0.26700733,652.06,651.07,3.81917192]
[1749462246112,0.26700733,652.06,651.05,4.12636798]
[1749462246611,0.26700733,652.06,651.05,0.30719606]
[1749462248311,0.26700733,652.06,651.07,3.81917192]
[1749462249413,0.26700733,652.06,651.05,4.12636798]
[1749462250110,0.26700733,652.06,651.05,0.30719606]
[1749462265234,0.26700733,652.06,651.1,3.81917192]
[1749462265640,0.26700733,652.06,651.18,3.81917192]
[1749462266140,0.26700733,652.06,651.2,3.81917192]
[1749462266642,0.26700733,652.06,651.05,0.30719606]
[1749462287653,0.26700733,652.06,651.13,3.81917192]
[1749462288558,0.26700733,652.06,651.25,3.81917192]
[1749462290353,0.26700733,652.06,651.2,3.81917192]
[1749462291857,0.26700733,652.06,651.19,3.81917192]
[1749462292361,0.26700733,652.06,651.25,3.81917192]
[1749462292760,0.26700733,652.06,651.26,3.81917192]
[1749462294963,0.26700733,652.06,651.24,3.81917192]
[1749462296065,0.26700733,652.06,651.15,3.81917192]
[1749462296258,0.26700733,652.06,651.13,3.81917192]
[1749462297661,0.26700733,652.06,651.1,3.81917192]
[1749462300468,0.26700733,652.06,651.12,3.81917192]
[1749462301267,0.26700733,652.06,651.13,3.81917192]
[1749462301767,0.26700733,652.06,651.11,3.81917192]
[1749462302264,0.26700733,652.06,651.12,3.81917192]
[1749462302668,0.26700733,652.06,651.05,0.30719606]
[1749462302669,0.26700733,652.06,651.11,3.81917192]
[1749462303967,0.26700733,652.06,651.17,3.81917192]
[1749462304570,0.26700733,652.06,651.12,3.81917192]
[1749462304973,0.26700733,652.06,651.13,3.81917192]
[1749462305377,0.26700733,652.06,651.14,3.81917192]
[1749462305773,0.26700733,652.06,651.21,3.81917192]
[1749462306273,0.26700733,652.06,651.22,3.81917192]
[1749462306680,0.26700733,652.06,651.23,3.81917192]
[1749462307279,0.26700733,652.06,651.05,0.30719606]
[1749462324597,0.26700733,652.06,650.95,3.81917192]
[1749462324793,0.26700733,652.06,650.98,3.81917192]
[1749462325692,0.26700733,652.06,651.03,3.81917192]
[1749462326194,0.26700733,652.06,651.02,3.81917192]
[1749462326594,0.26700733,652.06,651.01,3.81917192]
[1749462326995,0.26700733,652.06,651.27,3.81917192]
[1749462327394,0.26700733,652.06,651.2,3.81917192]
[1749462327998,0.26700733,652.06,651.19,3.81917192]
[1749462328297,0.26700733,652.06,651.22,3.81917192]
[1749462328898,0.26700733,652.06,651.25,3.81917192]
[1749462329397,0.26700733,652.06,651.24,3.81917192]
[1749462330201,0.26700733,652.06,651.26,3.81917192]
[1749462330594,0.26700733,652.06,651.25,3.81917192]
[1749462330997,0.26700733,652.06,651.27,3.81917192]
[1749462331598,0.26700733,652.06,651.04,3.81917192]
[1749462332398,0.26700733,652.06,651.02,3.81917192]
[1749462332798,0.26700733,652.06,651.01,3.81917192]
[1749462333402,0.26700733,652.06,651.02,3.81917192]
[1749462335100,0.26700733,652.06,651.03,3.81917192]
[1749462336107,0.26700733,652.06,651.06,3.81917192]
[1749462336900,0.26700733,652.06,651.12,3.81917192]
[1749462337304,0.26700733,652.06,650.8,5.34684069]
[1749462337305,0.26700733,652.06,651.14,3.81917192]
[1749462337702,0.26700733,652.06,651.25,3.81917192]
[1749462338705,0.26700733,652.06,651.34,3.81917192]
[1749462338902,1.13562263,652.62,651.34,3.81917192]
[1749462339102,1.13562263,652.61,651.34,3.81917192]
[1749462339402,1.13562263,652.6,651.24,3.81917192]
[1749462339607,1.13562263,652.59,651.23,3.81917192]
[1749462339906,0.26688549,652.3,651.23,3.81917192]
[1749462340105,0.26688549,652.3,651.22,3.81917192]
[1749462340606,0.26688549,652.3,651.2,3.81917192]
[1749462341405,0.26688549,652.3,651.19,3.81917192]
[1749462342904,0.26688549,652.3,651.18,3.81917192]
[1749462343705,0.26688549,652.3,651.19,3.81917192]
[1749462345010,0.26688549,652.3,651.18,3.81917192]
[1749462345510,0.26688549,652.3,651.17,3.81917192]
[1749462346410,0.26688549,652.3,651.19,3.81917192]
[1749462347811,0.26688549,652.3,650.9,5.34684069]
[1749462347812,0.26688549,652.3,651.2,3.81917192]
[1749462348211,0.26688549,652.3,650.9,5.34684069]
[1749462348212,0.26688549,652.3,651.14,3.81917192]
[1749462348512,0.26688549,652.3,651.26,3.81917192]
[1749462348906,0.26688549,652.3,651.04,3.81917192]
[1749462349510,0.26688549,652.3,651.03,3.81917192]
[1749462350411,0.26688549,652.3,651.05,3.81917192]
[1749462350810,0.26688549,652.3,651.04,3.81917192]
[1749462351215,0.26688549,652.3,651.05,3.81917192]
[1749462351814,0.26688549,652.3,651.06,3.81917192]
[1749462353416,0.26688549,652.3,651.05,3.81917192]
[1749462354513,0.26688549,652.3,651.06,3.81917192]
[1749462354913,0.26688549,652.3,651.04,3.81917192]
[1749462355416,0.26688549,652.3,651.03,3.81917192]
[1749462358016,0.26688549,652.3,650.7,0.26709545]
[1749462358017,0.26688549,652.3,651.05,3.81917192]
[1749462358615,0.26688549,652.3,650.73,5.34684069]
[1749462358616,0.26688549,652.3,651.04,3.81917192]
[1749462358820,0.26688549,652.3,651.21,3.81917192]
[1749462359115,0.26688549,652.3,651.22,0.30711587]
[1749462359315,0.26688549,652.3,651.25,3.81917192]
[1749462360221,0.26688549,652.3,651.24,3.81917192]
[1749462361321,0.26688549,652.3,651.25,3.81917192]
[1749462362522,0.26688549,652.3,651.26,3.81917192]
[1749462363423,0.26688549,652.3,651.25,3.81917192]
[1749462363822,0.26688549,652.3,651.22,4.12628779]
[1749462365220,0.26688549,652.3,651.22,0.30711587]
[1749462367125,0.26688549,652.3,651.37,3.79093938]
[1749462369923,0.26688549,652.3,651.22,0.30711587]
[1749462373526,0.26688549,652.3,651.25,3.79093938]
[1749462374032,0.26688549,652.3,651.26,3.79093938]
[1749462374430,0.26688549,652.3,651.28,3.79093938]
[1749462375429,0.26688549,652.3,651.22,0.30711587]
[1749462397353,0.56774052,652.53,651.22,0.30711587]
[1749462397551,0.26688549,652.39,651.22,0.30711587]
[1749462397753,0.26688549,652.39,651.29,3.79093938]
[1749462398154,0.26688549,652.39,651.5,3.79093938]
[1749462398653,0.26688549,652.39,651.55,3.79093938]
[1749462399050,0.26688549,652.39,651.53,3.79093938]
[1749462399549,0.26688549,652.39,651.48,3.79093938]
[1749462399950,0.26688549,652.39,651.25,5.34684069]
[1749462400148,0.26688549,652.39,651.22,0.30711587]
[1749462400149,0.56774052,652.53,651.22,0.30711587]
[1749462400348,0.26681183,652.5,651.22,0.30711587]
[1749462403251,0.26681183,652.5,651.28,3.79093938]
[1749462403454,0.26681183,652.5,651.29,0.30708286]
[1749462403956,0.26681183,652.5,651.33,3.79093938]
[1749462404152,0.26681183,652.5,651.34,0.30705929]
[1749462404554,0.26681183,652.5,651.44,3.79093938]
[1749462404755,0.26681183,652.5,651.45,0.30700744]
[1749462407653,0.26681183,652.5,651.57,3.79093938]
[1749462407853,0.26681183,652.5,651.57,4.09789028]
[1749462408054,0.26681183,652.5,651.6,3.79093938]
[1749462408460,0.26681183,652.5,651.57,0.3069509]
[1749462410257,0.56774052,652.53,651.57,0.3069509]
[1749462418860,0.26682103,652.48,651.57,0.3069509]
[1749462420861,0.56774052,652.53,651.57,0.3069509]
[1749462441083,0.26682922,652.51,651.57,0.3069509]
[1749462455091,0.56774052,652.53,651.57,0.3069509]
[1749462457486,0.56774052,652.53,651.58,3.79093938]
[1749462457688,0.56774052,652.53,651.59,0.30694148]
[1749462458887,0.56774052,652.53,651.67,3.79093938]
[1749462459692,0.56774052,652.53,651.66,3.79093938]
[1749462460687,0.56774052,652.53,651.64,3.79093938]
[1749462462994,0.56774052,652.53,651.63,3.79093938]
[1749462463291,0.56774052,652.53,651.63,4.09786202]
[1749462465192,0.56774052,652.53,651.82,3.79093938]
[1749462465797,0.56774052,652.53,651.8,3.79093938]
[1749462466091,0.56774052,652.53,651.89,3.79093938]
[1749462466591,0.56774052,652.53,651.87,3.79093938]
[1749462467095,0.56774052,652.53,651.88,3.79093938]
[1749462468096,0.56774052,652.53,651.87,3.79093938]
[1749462468297,0.56774052,652.53,651.88,3.79093938]
[1749462468698,0.56774052,652.53,651.91,3.79093938]
[1749462469294,0.56774052,652.53,651.66,5.34684069]
[1749462469295,0.56774052,652.53,651.92,3.79093938]
[1749462470599,0.56774052,652.53,651.93,3.79093938]
[1749462471100,0.56774052,652.53,651.69,5.34684069]
[1749462471101,0.56774052,652.53,651.91,3.79093938]
[1749462471502,0.56774052,652.53,651.72,3.79093938]
[1749462472898,0.56774052,652.53,651.63,0.30692264]
[1749462472899,0.56774052,652.53,651.71,3.79093938]
[1749462473205,0.56774052,652.53,651.72,3.79093938]
[1749462473804,0.56774052,652.53,651.71,0.30688496]
[1749462495919,0.26678626,652.63,651.71,0.30688496]
[1749462510731,0.26678626,652.63,651.45,0.26682922]
[1749462511231,0.26678626,652.63,651.01,3.79093938]
[1749462511425,0.26678626,652.63,651.38,0.2668681]
[1749462512130,0.30645705,652.62,651.38,0.2668681]
[1749462516928,1.45814511,652.62,651.38,0.2668681]
[1749462517133,0.30645705,652.62,651.38,0.2668681]
[1749462525238,0.30645705,652.62,651.38,4.05780748]
[1749462526038,0.30645705,652.62,651.38,0.2668681]
[1749462527539,0.30645705,652.62,651.38,4.05780748]
[1749462528043,0.30645705,652.62,651.39,3.79093938]
[1749462528239,0.30645705,652.62,651.45,3.79093938]
[1749462528744,0.30645705,652.62,651.44,3.79093938]
[1749462529239,0.30645705,652.62,651.45,3.79093938]
[1749462529842,0.30645705,652.62,651.44,3.79093938]
[1749462530244,0.30645705,652.62,651.45,3.79093938]
[1749462531646,0.30645705,652.62,651.46,3.79093938]
[1749462532146,0.30645705,652.62,651.41,3.79093938]
[1749462532342,0.30645705,652.62,651.42,4.09796096]
[1749462532548,0.30645705,652.62,651.43,0.30701687]
[1749462534546,0.30645705,652.62,651.44,3.79093938]
[1749462534745,0.30645705,652.62,651.44,4.09795153]
[1749462535846,0.30645705,652.62,651.48,3.79093938]
[1749462536446,0.30645705,652.62,651.44,0.30701215]
[1749462548065,0.30645705,652.62,651.44,4.09795153]
[1749462549160,0.30645705,652.62,651.46,3.79093938]
[1749462549564,0.30645705,652.62,651.47,3.79093938]
[1749462550060,0.30645705,652.62,651.46,3.79093938]
[1749462550460,0.30645705,652.62,651.49,3.79093938]
[1749462551261,0.30645705,652.62,651.5,3.79093938]
[1749462551759,0.30645705,652.62,651.49,3.79093938]
[1749462552161,0.30645705,652.62,651.5,3.79093938]
[1749462552566,0.30645705,652.62,651.52,3.79093938]
[1749462552968,1.17044498,652.61,651.52,3.79093938]
[1749462553268,1.17044498,652.61,651.47,3.79093938]
[1749462553765,1.17044498,652.6,651.48,3.79093938]
[1749462553966,1.17044498,652.61,651.48,3.79093938]
[1749462554164,1.17044498,652.61,651.44,0.30701215]
[1749462554165,1.17044498,652.61,651.49,3.79093938]
[1749462554367,1.47690203,652.62,651.49,3.79093938]
[1749462554569,1.47690203,652.62,651.58,3.79093938]
[1749462555168,0.30645705,652.62,651.58,3.79093938]
[1749462555364,0.30645705,652.62,651.65,3.79093938]
[1749462555765,0.30645705,652.62,651.44,0.30701215]
[1749462558165,1.47331954,652.62,651.44,0.30701215]
[1749462559064,0.30645705,652.62,651.44,0.30701215]
[1749462559265,1.47331954,652.62,651.44,0.30701215]
[1749462559465,1.16686249,652.61,651.44,0.30701215]
[1749462559666,1.16686249,652.6,651.44,0.30701215]
[1749462559963,1.16686249,652.59,651.44,0.30701215]
[1749462560264,0.30645705,652.62,651.44,0.30701215]
[1749462560265,1.47331954,652.62,651.44,0.30701215]
[1749462560471,1.16686249,652.61,651.44,0.30701215]
[1749462560772,1.16686249,652.6,651.44,0.30701215]
[1749462560966,1.16686249,652.59,651.44,0.30701215]
[1749462561169,1.16686249,652.58,651.44,0.30701215]
[1749462561465,1.16686249,652.57,651.44,0.30701215]
[1749462561770,1.16686249,652.61,651.44,0.30701215]
[1749462561965,1.16686249,652.6,651.44,0.30701215]
[1749462562170,1.16686249,652.59,651.44,0.30701215]
[1749462562370,1.47331954,652.62,651.44,0.30701215]
[1749462562866,0.30645705,652.62,651.44,0.30701215]
[1749462565272,1.16686249,652.61,651.44,0.30701215]
[1749462565473,1.47332893,652.6,651.44,0.30701215]
[1749462565669,1.47333362,652.59,651.44,0.30701215]
[1749462565873,1.16686249,652.58,651.44,0.30701215]
[1749462566171,1.16686249,652.57,651.44,0.30701215]
[1749462566370,1.16686249,652.56,651.44,0.30701215]
[1749462566573,1.15717124,652.55,651.44,0.30701215]
[1749462566770,0.30647113,652.59,651.44,0.30701215]
[1749462566972,1.15717124,652.58,651.44,0.30701215]
[1749462567171,1.15717124,652.57,651.44,0.30701215]
[1749462567473,1.15717124,652.56,651.44,0.30701215]
[1749462567674,1.15717124,652.55,651.44,0.30701215]
[1749462567874,0.30647113,652.59,651.44,0.30701215]
[1749462568071,1.15779438,652.58,651.44,0.30701215]
[1749462568277,1.15779438,652.57,651.44,0.30701215]
[1749462568476,1.15779438,652.56,651.44,0.30701215]
[1749462568676,1.15779438,652.55,651.44,0.30701215]
[1749462568872,0.30647113,652.59,651.44,0.30701215]
[1749462569076,1.15794344,652.58,651.44,0.30701215]
[1749462569274,1.15794344,652.57,651.44,0.30701215]
[1749462569572,1.15794344,652.56,651.47,3.79093938]
[1749462569878,0.30647113,652.59,651.47,3.79093938]
[1749462570075,1.15798566,652.58,651.47,3.79093938]
[1749462570275,1.15798566,652.57,651.47,3.79093938]
[1749462570476,1.15798566,652.56,651.47,3.79093938]
[1749462570677,0.30647113,652.59,651.48,3.79093938]
[1749462570975,1.15738173,652.58,651.48,3.79093938]
[1749462571176,1.15738173,652.57,651.48,3.79093938]
[1749462571374,1.15738173,652.56,651.48,3.79093938]
[1749462571673,0.30647113,652.59,651.49,3.79093938]
[1749462571974,1.15472642,652.58,651.49,3.79093938]
[1749462572177,1.15472642,652.57,651.49,3.79093938]
[1749462572375,1.15472642,652.56,651.49,3.79093938]
[1749462572579,1.15472642,652.58,651.59,3.79093938]
[1749462572877,1.15472642,652.57,651.59,3.79093938]
[1749462573076,0.30647113,652.59,651.59,3.79093938]
[1749462573276,1.15115037,652.58,651.59,3.79093938]
[1749462573575,1.15115037,652.57,651.59,3.79093938]
[1749462573877,1.15115037,652.56,651.53,3.79093938]
[1749462574075,0.30647113,652.59,651.53,3.79093938]
[1749462574278,1.15117557,652.58,651.53,3.79093938]
[1749462574574,1.15117557,652.57,651.53,3.79093938]
[1749462574775,1.15026063,652.58,651.49,3.79093938]
[1749462574979,0.30647113,652.59,651.49,3.79093938]
[1749462575176,0.30647113,652.59,651.44,4.09795153]
[1749462575679,0.30647113,652.59,651.44,0.30701215]
[1749462577777,0.30647113,652.59,651.44,4.09795153]
[1749462578378,0.30647113,652.59,651.46,3.79093938]
[1749462578577,0.30647113,652.59,651.47,0.30699801]
[1749462578781,0.30647113,652.59,651.54,3.79093938]
[1749462579282,0.30647113,652.59,651.56,3.79093938]
[1749462580079,0.30647113,652.59,651.54,3.79093938]
[1749462580681,0.30647113,652.59,651.61,3.79093938]
[1749462581981,0.30647113,652.59,651.56,3.79093938]
[1749462582385,0.30647113,652.59,651.55,3.79093938]
[1749462582984,0.30647113,652.59,651.55,4.0978997]
[1749462583188,0.30647113,652.59,651.62,3.79093938]
[1749462583783,0.30647113,652.59,651.61,3.79093938]
[1749462584186,0.30647113,652.59,651.59,3.79093938]
[1749462584788,0.30647113,652.59,651.58,3.79093938]
[1749462585486,0.30647113,652.59,651.58,0.30694619]
[1749462591993,0.30647113,652.59,651.62,3.79093938]
[1749462594190,0.30647113,652.59,651.64,3.79093938]
[1749462595095,0.30647113,652.59,651.7,3.79093938]
[1749462595493,0.30647113,652.59,651.81,3.79093938]
[1749462595890,0.30647113,652.59,651.64,3.79093938]
[1749462596294,0.30647113,652.59,651.63,3.79093938]
[1749462597296,0.30647113,652.59,651.6,3.79093938]
[1749462597592,0.30647113,652.59,651.62,3.79093938]
[1749462598091,0.30647113,652.59,651.58,0.30694619]
[1749462602593,0.26681387,652.4,651.58,0.30694619]
[1749462608997,0.26681387,652.4,651.63,3.79093938]
[1749462609901,0.26681387,652.4,651.62,3.79093938]
[1749462612704,0.26681387,652.4,651.61,3.79093938]
[1749462613008,0.26681387,652.4,651.58,0.30694619]
[1749462633823,0.26681387,652.4,651.67,3.79093938]
[1749462634123,0.26681387,652.4,651.75,3.79093938]
[1749462634521,0.26681387,652.4,651.76,3.79093938]
[1749462635123,0.26681387,652.4,651.77,3.79093938]
[1749462636427,0.26681387,652.4,651.81,3.79093938]
[1749462636923,0.26681387,652.4,651.7,3.79093938]
[1749462637327,0.26681387,652.4,651.71,3.79093938]
[1749462639429,0.30647113,652.59,651.58,0.30694619]
[1749462639625,0.26677194,652.53,651.58,0.30694619]
[1749462644133,1.15120436,653.13,651.58,0.30694619]
[1749462644331,0.30622712,653.11,651.58,0.30694619]
[1749462644532,0.26672287,652.61,651.58,0.30694619]
[1749462644727,1.15120436,653.09,651.58,0.30694619]
[1749462644937,0.26672696,652.61,651.58,0.30694619]
[1749462645332,1.15120436,653.07,651.58,0.30694619]
[1749462645534,0.26672901,652.61,651.58,0.30694619]
[1749462645734,0.30625057,653.06,651.58,0.30694619]
[1749462646231,0.26674332,652.55,651.73,3.79093938]
[1749462646436,0.30625057,653.06,651.73,3.79093938]
[1749462646629,0.26672696,652.7,651.73,3.79093938]
[1749462646932,0.26672696,652.7,651.61,3.79093938]
[1749462647135,0.26672696,652.7,651.62,0.30692735]
[1749462649532,0.26672696,652.7,651.62,4.09786673]
[1749462650634,0.26672696,652.7,651.62,0.30692735]
[1749462658942,0.26672696,652.7,651.68,3.79093938]
[1749462660246,0.26672696,652.7,651.69,3.79093938]
[1749462662644,0.26672696,652.7,651.71,3.79093938]
[1749462663449,0.26672696,652.7,651.62,0.30692735]
[1749462665051,0.26672696,652.7,651.92,3.79093938]
[1749462665446,0.26672696,652.7,651.91,3.79093938]
[1749462665947,0.30625057,653.06,651.75,3.79093938]
[1749462666148,0.26665441,652.77,651.75,3.79093938]
[1749462666349,0.26665441,652.77,651.74,3.79093938]
[1749462666853,0.26665441,652.77,651.75,3.79093938]
[1749462667050,0.26665441,652.77,651.77,3.79093938]
[1749462667748,0.26665441,652.77,651.79,3.79093938]
[1749462668564,0.26665441,652.77,651.78,3.79093938]
[1749462669450,0.26665441,652.77,651.83,3.79093938]
[1749462670053,0.30625057,653.06,651.62,0.30692735]
[1749462670250,0.2666493,652.84,651.62,0.30692735]
[1749462673455,0.2666493,652.84,651.66,3.79093938]
[1749462673651,0.2666493,652.84,651.68,0.30689909]
[1749462674850,0.2666493,652.84,651.77,3.79093938]
[1749462675052,0.2666493,652.84,651.78,0.306852]
[1749462675457,0.2666493,652.84,651.78,4.09779138]
[1749462675851,0.2666493,652.84,651.91,3.79093938]
[1749462676256,0.2666493,652.84,651.89,3.79093938]
[1749462676654,0.2666493,652.84,651.85,3.79093938]
[1749462676853,0.2666493,652.84,651.86,0.30681434]
[1749462680758,0.2666493,652.84,651.77,3.79093938]
[1749462681158,0.2666493,652.84,651.8,3.79093938]
[1749462682460,0.2666493,652.84,651.79,3.79093938]
[1749462684763,0.2666493,652.84,651.77,3.79093938]
[1749462685659,0.2666493,652.84,651.83,3.79093938]
[1749462686963,0.2666493,652.84,651.7,3.79093938]
[1749462688267,0.2666493,652.84,651.71,3.79093938]
[1749462688764,0.2666493,652.84,651.72,3.79093938]
[1749462689663,0.2666493,652.84,651.73,3.79093938]
[1749462690664,0.2666493,652.84,651.48,0.26681387]
[1749462690665,0.2666493,652.84,651.74,3.79093938]
[1749462691063,0.2666493,652.84,651.76,3.79093938]
[1749462691865,0.2666493,652.84,651.78,3.79093938]
[1749462692765,0.2666493,652.84,651.79,3.79093938]
[1749462693671,0.2666493,652.84,651.8,3.79093938]
[1749462694767,0.2666493,652.84,651.81,3.79093938]
[1749462695069,0.2666493,652.84,651.82,3.79093938]
[1749462695470,0.2666493,652.84,651.76,3.79093938]
[1749462696067,0.2666493,652.84,651.6,3.79093938]
[1749462696367,0.2666493,652.84,651.59,3.79093938]
[1749462696869,0.2666493,652.84,651.66,3.79093938]
[1749462697771,0.2666493,652.84,651.67,3.79093938]
[1749462698170,0.2666493,652.84,651.68,3.79093938]
[1749462700472,0.2666493,652.84,651.67,3.79093938]
[1749462701068,0.2666493,652.84,651.65,3.79093938]
[1749462703176,0.2666493,652.84,651.63,3.79093938]
[1749462703673,0.2666493,652.84,651.58,3.79093938]
[1749462703972,0.2666493,652.84,651.6,3.79093938]
[1749462704380,0.2666493,652.84,651.62,0.30692735]
[1749462705174,0.2666493,652.84,651.79,3.79093938]
[1749462705578,0.2666493,652.84,651.68,3.79093938]
[1749462705772,0.2666493,652.84,651.69,0.30689438]
[1749462709377,0.2666493,652.84,651.69,4.09783376]
[1749462709979,0.2666493,652.84,651.7,3.79093938]
[1749462710278,0.2666493,652.84,651.71,0.30688496]
[1749462710475,0.2666493,652.84,651.71,4.09782434]